bitfinex-derivatives/quotes_ETHF0:USTF0_20250411
["timestamp","ask_amount","ask_price","bid_price","bid_amount"]
[1744360266633,15.6264,1556.6,1556.5,1.28567]
[1744360267224,3.2078,1556.7,1556.6,1.28554]
[1744360267426,7.95764,1556.8,1556.5,3.2078]
[1744360267628,1e-05,1556.8,1556.7,1.28551]
[1744360267833,15.00867516,1557.0,1556.9,1.28534]
[1744360268125,15.00867516,1557.0,1556.9,45.29314]
[1744360268328,12.84063437,1557.0,1556.9,50.29314]
[1744360268527,8.71568437,1557.0,1556.9,50.29314]
[1744360268729,7.15990437,1557.0,1556.9,45.29314]
[1744360269036,25.80859911,1557.5,1556.9,45.29314]
[1744360269037,1.28489,1557.5,1557.2,1.28503]
[1744360269236,3.2078,1557.4,1556.9,52.3547]
[1744360269439,8.64320001,1557.4,1557.2,0.00964599]
[1744360269638,8.64320001,1557.4,1557.3,1.28501]
[1744360269826,5.43540001,1557.4,1557.3,1.28501]
[1744360270033,10.43540001,1557.4,1557.3,1.28501]
[1744360270329,10.43540001,1557.4,1557.2,0.00964599]
[1744360270330,6.66940001,1557.5,1557.4,1.28493]
[1744360270733,6.027,1557.5,1557.4,1.28493]
[1744360271143,12.74703001,1557.8,1557.5,1.28485]
[1744360271333,1.2849,1557.5,1557.3,3.2078]
[1744360271533,1.28498,1557.4,1557.2,0.00964599]
[1744360271731,8.2078,1557.5,1557.2,0.00964599]
[1744360271933,7.28697,1557.4,1557.2,0.00964599]
[1744360272133,15.96217,1557.4,1557.2,1.29473599]
[1744360272331,15.96216,1557.4,1557.2,0.00964599]
[1744360272532,14.6772,1557.4,1557.2,0.00964599]
[1744360273030,14.6772,1557.4,1557.3,1.28501]
[1744360273737,8.6752,1557.4,1557.3,1.28501]
[1744360273931,8.6752,1557.4,1557.3,4.49281]
[1744360274339,3.85020001,1557.7,1557.3,3.2078]
[1744360274340,3.2078,1557.7,1557.3,3.2078]
[1744360274633,1.28438,1558.1,1557.8,1.2846]
[1744360274835,8.6731,1558.0,1557.9,1.28452]
[1744360275538,16.8809,1558.0,1557.4,1.28493]
[1744360275735,1.28472,1557.7,1557.4,1.2849]
[1744360275937,15.95887,1557.6,1557.3,1.28496]
[1744360276140,1.28488,1557.5,1557.2,9.89991599]
[1744360276438,9.49768,1557.4,1557.1,1.28517]
[1744360276641,11.4205,1557.4,1556.8,44.0078]
[1744360276837,1.28512,1557.2,1557.0,3.2078]
[1744360277037,9.49793,1557.1,1556.8,1.28538]
[1744360277243,1.28526,1557.0,1556.7,4.49325]
[1744360277435,8.2127,1556.9,1556.8,0.00964599]
[1744360277935,8.2127,1556.9,1556.8,1.29507599]
[1744360278139,9.49804,1556.9,1556.8,0.00964599]
[1744360278341,8.2127,1556.9,1556.8,0.00964599]
[1744360278540,9.49804,1556.9,1556.8,0.00964599]
[1744360278842,3.21357,1556.8,1556.1,3.2078]
[1744360279044,1.28585,1556.3,1556.1,3.2078]
[1744360279237,1.28585,1556.3,1556.0,1.28609]
[1744360279238,8.2127,1556.2,1556.0,1.28609]
[1744360279444,8.2127,1556.2,1556.1,1.286]
[1744360279642,8.2127,1556.2,1555.9,40.8]
[1744360279846,8.22234599,1556.2,1555.9,50.32985599]
[1744360280450,8.22234599,1556.2,1556.0,1.28608]
[1744360280841,15.50826599,1556.2,1555.9,50.32985599]
[1744360281041,15.50832599,1556.2,1555.9,50.32987599]
[1744360281439,1.28609,1556.0,1555.9,0.00964599]
[1744360281844,14.85679,1556.0,1555.9,0.00964599]
[1744360282652,8.5707,1556.0,1555.8,1.28623]
[1744360283349,8.5707,1556.0,1555.9,1.28617]
[1744360283551,8.5707,1556.0,1555.8,1.2862]
[1744360283746,0.6432,1556.1,1555.8,3.21744599]
[1744360283947,0.00964599,1556.2,1556.1,1.286]
[1744360284148,0.00964599,1556.2,1556.1,10.2599]
[1744360284351,0.00964599,1556.2,1556.1,15.2599]
[1744360284552,0.00964599,1556.2,1556.1,20.3526]
[1744360285647,0.00964599,1556.2,1556.1,15.3526]
[1744360286452,0.00964599,1556.2,1556.1,20.3526]
[1744360286757,0.00964599,1556.2,1556.1,15.3526]
[1744360286947,0.00964599,1556.2,1556.1,20.3526]
[1744360287254,0.00964599,1556.2,1556.1,15.3526]
[1744360287455,0.00964599,1556.2,1556.1,20.3526]
[1744360287756,5.99e-06,1556.2,1556.1,20.3526]
[1744360288353,5.99e-06,1556.2,1556.1,61.1526]
[1744360289344,5.99e-06,1556.2,1556.1,56.1526]
[1744360289748,4.49336,1556.7,1556.5,1.28567]
[1744360290243,1.28565,1556.6,1556.4,1.28573]
[1744360290447,8.6459,1556.5,1556.4,1.28573]
[1744360290955,8.6459,1556.5,1556.3,8.2464]
[1744360291144,9.93163,1556.5,1556.3,9.53223]
[1744360291547,9.93157,1556.5,1556.3,9.53217]
[1744360291742,4.14563899,1556.5,1556.3,9.53217]
[1744360291957,2.85996899,1556.5,1556.4,1.28576]
[1744360292357,2.85996899,1556.5,1556.3,9.53219]
[1744360293062,2.85996899,1556.5,1556.4,1.28576]
[1744360293546,4.14566899,1556.5,1556.3,9.53218]
[1744360294060,2.85996899,1556.5,1556.4,1.28576]
[1744360294462,4.14563899,1556.5,1556.3,9.53218]
[1744360294766,7.85996899,1556.5,1556.1,40.8]
[1744360294952,2.85996899,1556.5,1556.1,48.9595]
[1744360295153,1.28579,1556.4,1556.2,9.44539]
[1744360295361,8.9894,1556.3,1556.2,9.44539]
[1744360297261,10.27524,1556.3,1556.2,9.44539]
[1744360297561,10.27524,1556.3,1556.2,8.1595]
[1744360297758,3.21481,1556.2,1555.8,0.00964599]
[1744360297965,1.28616,1556.0,1555.8,1.29586599]
[1744360298165,1.28617,1555.9,1555.8,0.00964599]
[1744360298757,8.2078,1555.9,1555.5,3.2078]
[1744360298951,1.2865,1555.5,1555.4,8.2688]
[1744360299150,1.28658,1555.4,1555.3,10.10628748]
[1744360299654,6.28658,1555.4,1555.3,10.10628748]
[1744360299858,6.28658,1555.4,1555.3,4.26922545]
[1744360301366,1.28667,1555.3,1555.2,0.00964599]
[1744360301661,10.49647,1555.3,1555.2,0.00964599]
[1744360301858,1.28691,1555.0,1554.9,15.15943122]
[1744360302064,7.27091,1555.0,1554.9,15.15943122]
[1744360302256,12.27091,1555.0,1554.9,15.15943122]
[1744360302456,17.81701,1555.0,1554.9,15.15943122]
[1744360302660,17.81701,1555.0,1554.9,4.49002122]
[1744360302860,1.28708,1554.8,1554.7,16.29152691]
[1744360303066,4.49488,1554.8,1554.7,6.43104691]
[1744360303376,9.49488,1554.8,1554.7,2.97425691]
[1744360303664,9.49488,1554.8,1554.7,1.22268691]
[1744360305163,10.48088,1554.8,1554.7,1.22268691]
[1744360305563,10.48088,1554.8,1554.6,0.00964599]
[1744360305564,9.1938,1554.8,1554.6,0.00964599]
[1744360305765,9.1938,1554.8,1554.6,1.29686599]
[1744360305966,9.1938,1554.8,1554.7,9.69806]
[1744360306165,0.6432,1555.0,1554.7,11.6187]
[1744360306366,5.986,1555.1,1554.9,1.287]
[1744360306566,7.27283,1555.1,1555.0,8.4109]
[1744360306867,5.986,1555.1,1554.8,1.28707]
[1744360307068,7.27289,1555.1,1554.8,9.83747]
[1744360307366,5.986,1555.1,1554.8,8.5504]
[1744360307570,1.28691,1555.0,1554.8,8.5504]
[1744360308071,1.28691,1555.0,1554.8,9.83747]
[1744360308271,5.986,1555.1,1554.9,1.28697]
[1744360308473,5.986,1555.1,1554.8,8.5504]
[1744360308474,5.986,1555.1,1555.0,9.83731]
[1744360309175,5.986,1555.1,1555.0,8.5504]
[1744360309370,7.27283,1555.1,1555.0,8.5504]
[1744360309569,5.986,1555.1,1555.0,8.5504]
[1744360309770,7.27283,1555.1,1555.0,8.5504]
[1744360311569,1.28711,1554.8,1554.6,1.29686599]
[1744360311869,1.28711,1554.8,1554.6,9.67956599]
[1744360312066,5.987,1554.8,1554.7,1.28716]
[1744360312467,5.987,1554.8,1554.7,9.49496]
[1744360312865,5.987,1554.8,1554.7,4.49496]
[1744360313072,5.987,1554.8,1554.7,1.28716]
[1744360313967,5.987,1554.8,1554.7,4.49496]
[1744360314173,5.987,1554.8,1554.7,9.49496]
[1744360314777,4.49472,1555.0,1554.8,1.28702]
[1744360315074,3.2078,1555.0,1554.9,9.9553]
[1744360316269,3.2078,1555.0,1554.9,8.6683]
[1744360316570,0.6432,1555.1,1555.0,1.28691]
[1744360316773,0.6432,1555.2,1555.1,1.28683]
[1744360316970,0.00964599,1555.5,1555.4,1.28658]
[1744360317176,0.00964599,1555.5,1555.4,3.2078]
[1744360317378,0.00964599,1555.5,1555.4,11.6611]
[1744360317578,10.03184599,1555.5,1555.4,8.4533]
[1744360317871,10.03184599,1555.5,1555.0,3.2078]
[1744360317872,1.28667,1555.3,1555.0,3.2078]
[1744360318078,7.27467,1555.3,1555.1,8.4533]
[1744360318376,1.28675,1555.2,1555.1,8.4533]
[1744360318576,8.7357,1555.2,1555.1,9.74013]
[1744360318779,5.988,1555.3,1555.1,9.74013]
[1744360319280,1.28675,1555.2,1555.1,8.4533]
[1744360319582,9.72915,1555.2,1555.1,8.4533]
[1744360320373,1.28689,1555.1,1554.9,1.28698]
[1744360320573,1.28689,1555.1,1554.9,9.85188]
[1744360320878,8.4424,1555.2,1554.9,8.5649]
[1744360321081,1.2869,1555.1,1554.9,9.85187]
[1744360321484,7.27494,1555.0,1554.8,4.49486]
[1744360321778,5.988,1555.0,1554.8,3.2078]
[1744360321981,5.988,1555.0,1554.6,3.21744599]
[1744360321982,1.28716,1554.7,1554.6,3.21744599]
[1744360322280,5.988,1554.7,1554.6,4.50469599]
[1744360323994,6.632,1554.7,1554.6,4.50469599]
[1744360324284,6.632,1554.7,1554.6,3.21744599]
[1744360324490,6.632,1554.7,1554.6,4.50469599]
[1744360324688,7.27516,1554.7,1554.6,0.00964599]
[1744360324888,15.97936,1554.7,1554.6,0.00964599]
[1744360325087,21.62336,1554.7,1554.6,0.00964599]
[1744360325394,16.62336,1554.7,1554.6,0.00964599]
[1744360325893,6.632,1554.7,1554.6,4.50469599]
[1744360326089,5.988,1554.7,1554.6,4.50469599]
[1744360326297,0.644,1554.9,1554.6,4.50469599]
[1744360326298,0.644,1555.0,1554.8,1.28701]
[1744360326588,0.644,1555.0,1554.9,9.82209399]
[1744360326894,1.28691,1555.0,1554.9,8.53509399]
[1744360327088,1.28691,1555.0,1554.6,14.21465599]
[1744360327089,1.28709,1554.8,1554.6,14.21465599]
[1744360327288,7.27509,1554.8,1554.6,12.92744599]
[1744360327488,7.27509,1554.8,1554.6,11.00689599]
[1744360327688,7.27509,1554.8,1554.6,11.00688599]
[1744360328786,7.27509,1554.8,1554.6,14.21468599]
[1744360329900,7.27509,1554.8,1554.7,8.738]
[1744360330891,1.28716,1554.7,1554.6,0.00964599]
[1744360331091,9.78046,1554.7,1554.6,8.80514599]
[1744360331595,9.78046,1554.7,1554.6,0.00964599]
[1744360332295,9.78046,1554.7,1554.6,8.80514599]
[1744360332494,7.2751,1554.8,1554.6,10.09239599]
[1744360332696,5.988,1554.8,1554.7,4.49496]
[1744360333395,6.6312,1554.8,1554.7,4.49496]
[1744360333591,6.6312,1554.8,1554.6,8.80514599]
[1744360333796,7.91829,1554.8,1554.6,8.80514599]
[1744360333995,1.28716,1554.7,1554.6,8.80514599]
[1744360334190,10.40016601,1554.7,1554.6,8.80514599]
[1744360336391,10.40016601,1554.7,1554.6,0.00964599]
[1744360338101,18.60796601,1554.7,1554.6,0.00964599]
[1744360340503,19.57996601,1554.7,1554.6,0.00964599]
[1744360340999,24.57996601,1554.7,1554.6,0.00964599]
[1744360341799,19.57996601,1554.7,1554.6,0.00964599]
[1744360342503,19.66747202,1554.7,1554.6,0.00964599]
[1744360343306,7.43417202,1554.7,1554.6,3.21744599]
[1744360343503,6.14701202,1554.7,1554.6,4.50469599]
[1744360343708,6.14701202,1554.7,1554.6,3.21744599]
[1744360343899,7.43417202,1554.7,1554.6,0.00964599]
[1744360344398,6.14701202,1554.7,1554.6,3.21744599]
[1744360344911,6.14701202,1554.7,1554.6,4.50469599]
[1744360345206,6.14701202,1554.7,1554.6,9.50469599]
[1744360345406,0.17501202,1554.7,1554.6,9.50469599]
[1744360345799,5.972,1555.0,1554.8,1.28703]
[1744360346001,5.972,1555.0,1554.8,3.2078]
[1744360346200,7.25891,1555.0,1554.9,7.6135]
[1744360349807,7.34641601,1555.0,1554.9,7.6135]
[1744360350712,1.28708,1554.8,1554.7,5.1939]
[1744360350914,1.37458601,1554.8,1554.7,5.1939]
[1744360351111,0.08750601,1554.8,1554.7,5.1939]
[1744360351307,1.37458601,1554.8,1554.7,5.1939]
[1744360351716,0.08750601,1554.8,1554.7,5.1939]
[1744360351910,0.08750601,1554.8,1554.7,14.65936]
[1744360352414,0.08750601,1554.8,1554.7,13.3722]
[1744360352914,1.37458601,1554.8,1554.7,8.1783]
[1744360353109,9.45278601,1554.8,1554.7,8.1783]
[1744360354014,1.37458601,1554.8,1554.7,8.1783]
[1744360354418,0.08750601,1554.8,1554.7,9.46546]
[1744360354915,1.28716,1554.7,1554.6,3.21744599]
[1744360355116,15.33736,1554.7,1554.6,0.00964599]
[1744360356005,15.42486601,1554.7,1554.6,0.00964599]
[1744360360317,7.34666601,1554.7,1554.6,0.00964599]
[1744360360518,7.34666601,1554.7,1554.6,4.92244599]
[1744360360718,7.37991788,1554.7,1554.6,4.92244599]
[1744360361320,7.37991788,1554.7,1554.6,0.00964599]
[1744360361921,10.58771788,1554.7,1554.6,0.00964599]
[1744360362106,15.58771788,1554.7,1554.6,5.99e-06]
[1744360362515,28.96991788,1554.7,1554.6,5.99e-06]
[1744360363119,1.28758,1554.2,1554.1,4.9128]
[1744360363422,7.24158,1554.2,1554.1,4.9128]
[1744360363809,7.36233788,1554.2,1554.1,4.9128]
[1744360364718,1.28766,1554.1,1554.0,0.00964599]
[1744360365023,9.52986,1554.1,1554.0,0.00964599]
[1744360365812,9.65061788,1554.1,1554.0,0.00964599]
[1744360368016,15.29461788,1554.1,1554.0,5.99e-06]
[1744360369121,1.28807,1553.6,1553.5,7.5916]
[1744360369319,7.24407,1553.6,1553.5,7.5916]
[1744360370025,7.36482788,1553.6,1553.5,7.5916]
[1744360371024,1.28816,1553.5,1553.4,15.15558127]
[1744360371230,9.01366,1553.5,1553.4,22.95858127]
[1744360371733,9.01366,1553.5,1553.4,15.15558127]
[1744360371920,9.13441788,1553.5,1553.4,15.15558127]
[1744360372226,9.13441788,1553.5,1553.4,0.00643067]
[1744360372430,1.40891788,1553.5,1553.4,0.00643067]
[1744360372630,9.13441788,1553.5,1553.4,0.00643067]
[1744360373023,9.77841788,1553.5,1553.4,0.00643067]
[1744360374632,9.77841788,1553.5,1552.9,4.9439]
[1744360374633,3.22089,1553.3,1552.9,4.9439]
[1744360374823,12.3869,1553.2,1552.6,3.2078]
[1744360375031,1.28874,1552.8,1552.6,9.7369]
[1744360375228,10.45454,1552.8,1552.6,9.7369]
[1744360375534,10.45454,1552.8,1552.6,4.9869]
[1744360375921,10.57529788,1552.8,1552.6,4.9869]
[1744360376126,7.36749788,1552.8,1552.6,4.9869]
[1744360377236,8.01229788,1552.8,1552.6,4.9869]
[1744360377426,15.90579788,1552.8,1552.6,4.9869]
[1744360378136,15.90579788,1552.8,1552.7,13.4931906]
[1744360378334,1.2889,1552.6,1552.5,19.99369658]
[1744360378637,1.28899,1552.5,1552.4,5.0417]
[1744360378837,7.24799,1552.5,1552.4,5.0417]
[1744360379130,7.36874788,1552.5,1552.4,10.0417]
[1744360379322,7.36874788,1552.5,1552.4,5.0417]
[1744360379939,7.36874788,1552.5,1552.4,12.6379]
[1744360381738,7.36874788,1552.5,1552.1,44.0078]
[1744360381739,1.28921,1552.3,1552.1,44.0078]
[1744360381937,1.28921,1552.3,1552.2,12.8247]
[1744360382138,1.28921,1552.3,1552.2,12.70394212]
[1744360382339,7.24805,1552.5,1552.2,17.70394212]
[1744360382536,1.28907,1552.4,1552.3,7.5962]
[1744360383241,1.28924,1552.2,1552.1,3.2078]
[1744360383442,7.25024,1552.2,1552.1,3.2078]
[1744360384540,5.961,1552.2,1552.1,3.2078]
[1744360384740,5.961,1552.2,1552.1,16.0039]
[1744360385042,7.25024,1552.2,1552.1,7.7961]
[1744360385234,1.28932,1552.1,1552.0,10.0578]
[1744360385630,1.2894,1552.0,1551.9,7.7961]
[1744360385835,4.4972,1552.0,1551.9,7.7961]
[1744360386235,4.4972,1552.0,1551.4,3.2078]
[1744360386236,1.28982,1551.5,1551.4,3.2078]
[1744360386437,1.28973,1551.6,1551.5,7.9451]
[1744360386640,7.25173,1551.6,1551.5,12.84]
[1744360387242,7.25173,1551.6,1551.5,17.8181]
[1744360390753,1.28998,1551.3,1551.2,3.2078]
[1744360391052,7.25298,1551.3,1551.2,3.2078]
[1744360391242,5.963,1551.3,1551.2,8.2078]
[1744360391844,5.964,1551.6,1551.2,9.49786]
[1744360392048,7.25378,1551.6,1551.4,3.2078]
[1744360392251,7.25378,1551.6,1551.5,17.944]
[1744360392653,8.2367,1551.8,1551.5,17.944]
[1744360392854,1.28964,1551.8,1551.7,3.2078]
[1744360393856,1.28965,1551.7,1551.6,7.7405]
[1744360396352,1.28973,1551.6,1551.5,10.2035]
[1744360396657,7.23573,1551.6,1551.5,10.2035]
[1744360397151,7.23573,1551.6,1551.5,13.4113]
[1744360397757,5.946,1551.6,1551.5,13.4113]
[1744360397954,1.2896,1551.8,1551.5,19.70112]
[1744360398153,1.2896,1551.8,1551.7,3.2078]
[1744360398758,5.947,1551.9,1551.6,7.533]
[1744360398759,1.28965,1551.7,1551.6,7.533]
[1744360401360,1.28965,1551.7,1551.5,10.2035]
[1744360401361,1.28973,1551.6,1551.5,10.2035]
[1744360401656,1.2899,1551.4,1551.3,7.5109]
[1744360405262,1.28998,1551.3,1551.2,3.2078]
[1744360405462,7.23698,1551.3,1551.2,3.2078]
[1744360405663,7.23698,1551.3,1551.2,10.734]
[1744360407553,3.22527,1551.2,1551.0,3.2078]
[1744360407757,1.29015,1551.1,1551.0,8.0964]
[1744360408263,9.22855,1551.1,1551.0,8.0964]
[1744360409767,1.29032,1550.9,1550.8,3.2078]
[1744360410367,1.2904,1550.8,1550.7,4.9047]
[1744360411262,1.2904,1550.8,1550.7,12.547]
[1744360411963,9.31578,1550.9,1550.7,12.547]
[1744360412162,6.59360001,1551.0,1550.8,10.8501]
[1744360412368,7.88390001,1551.0,1550.9,7.6423]
[1744360412867,7.8831,1551.0,1550.9,7.6423]
[1744360413464,1.29032,1550.9,1550.8,3.2078]
[1744360413665,9.15032,1550.9,1550.8,3.2078]
[1744360413866,7.88309,1551.0,1550.8,3.2078]
[1744360414070,7.88309,1551.0,1550.9,7.5958]
[1744360414272,6.5928,1551.0,1550.9,7.5958]
[1744360414571,7.23823,1551.0,1550.9,7.5958]
[1744360415969,0.6448,1551.1,1550.9,12.5958]
[1744360416267,99.62669599,1551.3,1551.0,4.49797]
[1744360416571,1.29007,1551.2,1551.1,12.7886]
[1744360416967,8.76587,1551.2,1551.1,12.7886]
[1744360417873,99.62669599,1551.3,1551.1,12.7886]
[1744360418170,8.77549599,1551.3,1551.2,7.8761]
[1744360418872,0.00964599,1551.3,1551.2,9.16617]
[1744360419066,0.00964599,1551.3,1551.2,12.37397]
[1744360419467,0.00964599,1551.3,1551.2,11.0839]
[1744360419878,0.00964599,1551.3,1551.2,12.37397]
[1744360420175,0.00964599,1551.3,1551.2,11.0839]
[1744360420773,0.00964599,1551.3,1551.1,4.9125]
[1744360420973,1.29007,1551.2,1551.1,4.9125]
[1744360421471,7.55194599,1551.3,1551.0,12.7673]
[1744360421667,3.22559,1551.0,1550.7,17.4235]
[1744360421867,1.2904,1550.8,1550.7,17.4235]
[1744360422273,8.8327,1550.8,1550.7,17.4235]
[1744360422474,7.5423,1550.8,1550.7,20.6313]
[1744360422674,7.23934,1550.9,1550.7,20.6313]
[1744360422878,7.23934,1550.9,1550.8,7.8762]
[1744360423174,5.949,1550.9,1550.8,7.8762]
[1744360423365,5.949,1550.9,1550.8,9.1666]
[1744360423871,13.3259,1551.2,1550.9,1.29026]
[1744360424077,13.3259,1551.2,1551.0,12.3742]
[1744360424278,14.61597,1551.2,1551.1,17.6607]
[1744360424571,5.931,1551.2,1551.1,17.6607]
[1744360424775,7.22107,1551.2,1551.1,17.6607]
[1744360424976,5.931,1551.2,1551.1,17.6607]
[1744360425164,7.22107,1551.2,1551.1,17.6607]
[1744360427081,5.931,1551.2,1551.1,17.6607]
[1744360427780,1.29968599,1551.3,1551.1,17.6607]
[1744360428077,1.29962599,1551.3,1551.2,7.8034]
[1744360428681,0.00964599,1551.3,1551.2,11.0112]
[1744360429581,1.29962599,1551.3,1551.2,11.0112]
[1744360430583,0.00964599,1551.3,1551.2,3.2078]
[1744360430881,1.29007,1551.2,1551.1,16.7844]
[1744360431185,12.6783,1551.2,1551.1,16.7844]
[1744360431487,13.96837,1551.2,1551.1,16.7844]
[1744360432084,5.931,1551.2,1551.1,16.7844]
[1744360432279,5.931,1551.2,1551.1,18.07455]
[1744360432488,5.931,1551.2,1551.1,16.7844]
[1744360432778,1.29966599,1551.3,1551.1,16.7844]
[1744360432989,1.94446599,1551.3,1551.2,10.4004]
[1744360433180,0.00964599,1551.3,1551.2,10.4004]
[1744360433370,1.94442599,1551.3,1551.2,10.4004]
[1744360433690,1.29007,1551.2,1551.1,9.7845]
[1744360433985,8.61227,1551.2,1551.1,9.7845]
[1744360434378,8.61227,1551.2,1551.1,16.9771]
[1744360434687,8.61232,1551.2,1551.0,3.2078]
[1744360434980,8.61232,1551.2,1551.1,6.8282]
[1744360435482,8.61232,1551.2,1551.0,12.7917]
[1744360435884,8.61232,1551.2,1551.0,19.6199]
[1744360436183,8.61234,1551.2,1551.0,19.6199]
[1744360436771,1.94448599,1551.3,1551.0,20.91013]
[1744360436980,0.65444599,1551.3,1551.2,3.2078]
[1744360437181,1.29015,1551.1,1551.0,9.5839]
[1744360437483,1.29027,1551.0,1550.8,16.54789]
[1744360437679,6.722,1551.0,1550.7,15.1143039]
[1744360437885,8.01228,1551.0,1550.7,18.3221039]
[1744360438084,8.01228,1551.0,1550.8,8.53318]
[1744360438686,6.722,1551.0,1550.9,4.49812]
[1744360438886,12.653,1551.0,1550.9,9.71962]
[1744360439075,12.653,1551.0,1550.9,8.4293]
[1744360439277,5.931,1551.0,1550.9,9.7196]
[1744360439478,5.931,1551.0,1550.9,8.4293]
[1744360439682,13.94323,1551.0,1550.9,8.4293]
[1744360439981,5.931,1551.0,1550.9,9.71962]
[1744360440385,5.931,1551.0,1550.9,8.4293]
[1744360440578,7.22123,1551.0,1550.9,8.4293]
[1744360440781,5.931,1551.0,1550.9,8.4293]
[1744360441281,7.22123,1551.0,1550.9,8.4293]
[1744360441488,5.931,1551.0,1550.9,8.4293]
[1744360441790,5.931,1551.0,1550.9,9.71962]
[1744360442284,6.722,1551.2,1551.0,1.29016]
[1744360442488,5.931,1551.2,1551.1,4.49795]
[1744360442784,5.00791372,1551.3,1551.2,1.29007]
[1744360442990,5.00791372,1551.3,1551.2,8.05397]
[1744360443193,5.00791372,1551.3,1551.2,13.05397]
[1744360443488,5.00791372,1551.3,1551.2,8.05397]
[1744360443790,5.00791372,1551.3,1551.2,13.05397]
[1744360443984,7.50704759,1551.3,1551.2,13.05397]
[1744360446283,7.50704759,1551.3,1551.2,8.05397]
[1744360446987,0.00964599,1551.3,1551.2,13.05397]
[1744360448286,0.00964599,1551.3,1551.2,8.05397]
[1744360454183,7.35474599,1551.3,1551.1,19.4809939]
[1744360454387,1.29023,1551.0,1550.9,18.4757039]
[1744360454589,5.91,1551.0,1550.9,18.4757039]
[1744360454786,5.91,1551.0,1550.9,19.7660239]
[1744360455295,13.2551,1551.0,1550.9,19.7660239]
[1744360455482,13.2551,1551.0,1550.9,15.2679039]
[1744360455797,13.2551,1551.0,1550.9,10.0464039]
[1744360455996,14.54533,1551.0,1550.9,10.0464039]
[1744360456196,19.02833,1551.0,1550.9,10.0464039]
[1744360456498,24.02833,1551.0,1550.9,10.0464039]
[1744360458397,1.29041,1550.8,1550.5,11.22579]
[1744360458791,13.9294,1550.7,1550.5,9.9352]
[1744360458996,0.52549586,1550.9,1550.5,3.2078]
[1744360458997,8.17807,1550.6,1550.5,3.2078]
[1744360459291,0.64560001,1550.8,1550.7,1.29048]
[1744360459495,5.02522855,1551.0,1550.7,3.2078]
[1744360459695,11.91272855,1551.0,1550.9,4.49812]
[1744360459897,11.91272855,1551.0,1550.9,3.2078]
[1744360460095,11.91272855,1551.0,1550.9,9.794]
[1744360460297,5.02522855,1551.0,1550.9,11.08432]
[1744360460500,5.02522855,1551.0,1550.9,9.794]
[1744360460699,13.20295855,1551.0,1550.9,9.794]
[1744360460884,5.02522855,1551.0,1550.9,11.08432]
[1744360461494,5.02522855,1551.0,1550.9,9.794]
[1744360461693,6.31545855,1551.0,1550.9,9.794]
[1744360461895,12.22641855,1551.1,1550.9,11.0843]
[1744360462097,12.22641855,1551.1,1551.0,6.9004]
[1744360462290,12.22641855,1551.1,1550.9,4.49811]
[1744360462490,19.40431855,1551.1,1551.0,6.9004]
[1744360465204,14.37909,1551.1,1551.0,6.9004]
[1744360465896,5.68047455,1551.3,1551.2,1.29007]
[1744360466094,5.03487454,1551.3,1551.2,4.49787]
[1744360466486,5.03487454,1551.3,1551.2,16.41207]
[1744360469195,0.00964599,1551.3,1551.2,16.41207]
[1744360476403,0.00964599,1551.3,1551.2,8.1061]
[1744360476702,1.29007,1551.2,1551.1,4.9167]
[1744360476904,1.29007,1551.2,1551.0,21.4581939]
[1744360477105,8.01275,1551.1,1551.0,13.2542039]
[1744360477304,13.92275,1551.1,1551.0,13.2542039]
[1744360477903,13.92275,1551.1,1551.0,10.0464039]
[1744360478303,13.92275,1551.1,1551.0,14.5444339]
[1744360478803,12.6326,1551.1,1551.0,14.5444339]
[1744360480203,13.92275,1551.1,1551.0,13.2542039]
[1744360480603,13.92275,1551.1,1551.0,14.5444339]
[1744360480811,12.6326,1551.1,1551.0,4.49803]
[1744360481003,0.00964599,1551.3,1551.2,1.29007]
[1744360481304,1.29962599,1551.3,1551.2,3.2078]
[1744360481501,1.29962599,1551.3,1551.1,12.64884]
[1744360481696,7.1019,1551.2,1551.1,12.64884]
[1744360482006,8.39197,1551.2,1551.1,4.7164]
[1744360482206,7.1019,1551.2,1551.0,3.2078]
[1744360482409,8.39205,1551.2,1551.0,4.49803]
[1744360483309,1.29028,1551.0,1550.8,14.43834]
[1744360483504,6.7794,1550.9,1550.8,14.43834]
[1744360484603,6.7794,1550.9,1550.8,21.52024]
[1744360486009,5.891,1551.0,1550.9,1.29032]
[1744360486212,5.891,1551.0,1550.9,8.37222]
[1744360486409,13.0121,1551.0,1550.9,8.37222]
[1744360486711,14.30233,1551.0,1550.8,9.59686]
[1744360487012,7.1211,1550.9,1550.8,9.59686]
[1744360487308,7.1211,1550.9,1550.8,16.60626]
[1744360487511,8.41142,1550.9,1550.8,15.3159]
[1744360487810,8.41142,1550.9,1550.8,16.6063]
[1744360488910,7.1211,1550.9,1550.8,16.6063]
[1744360490213,7.1211,1550.9,1550.8,13.3985]
[1744360490712,8.41142,1550.9,1550.8,16.6063]
[1744360490911,7.1211,1550.9,1550.6,4.8849]
[1744360491211,1.29048,1550.7,1550.6,4.8849]
[1744360491411,1.29057,1550.6,1550.5,50.4581]
[1744360491601,7.97137,1550.6,1550.5,44.0078]
[1744360491999,7.97137,1550.6,1550.5,45.29845]
[1744360493409,6.6808,1550.6,1550.5,45.29845]
[1744360493609,7.97137,1550.6,1550.5,4.49845]
[1744360493804,7.97137,1550.6,1550.5,3.2078]
[1744360494109,1.29065,1550.5,1550.4,10.0464039]
[1744360497115,1.29073,1550.4,1550.3,44.0078]
[1744360497310,13.87623,1550.4,1550.3,3.2078]
[1744360497612,1.2909,1550.2,1550.1,3.2078]
[1744360497812,1.29096,1550.2,1550.0,5.1017]
[1744360498016,6.6935,1550.1,1550.0,5.08861849]
[1744360498208,12.5855,1550.1,1550.0,5.08861849]
[1744360498410,12.5855,1550.1,1550.0,45.88861849]
[1744360499115,13.87648,1550.1,1550.0,45.88861849]
[1744360499602,13.87648,1550.1,1550.0,5.08861849]